Cogmind - Beta 15 @@@ ROGUE MODE // 2025.05.31 @ 23:58:22 Player: shockman27 Result: Destroyed by D-53 Grenadier with Mini Grenade Launcher Performance ------------- Evolutions (0) 0 Regions Visited (2) 400 Robots Destroyed (41) 205 Value Destroyed (1060) 1060 Prototype IDs (3) 60 Alien Tech Used (0) 0 Bonus (0) 0 TOTAL SCORE: 1725 Bonus ------- None Cogmind --------- Core Integrity 0/250 Matter 285/300 Energy 224/250 System Corruption 0% Temperature Cool (0) Movement Rolling (110) Ox2 Location -10/Mines Parts ------- > --- POWER (1) -------- Ion Engine > --- PROPULSION (2) --- Wheel Wheel > --- UTILITY (2) ------ High-capacity Storage Unit Seismic Detector > --- WEAPON (2) ------- Assault Rifle > --- INVENTORY (20) --- Ion Engine Light Ion Engine Light Ion Engine Light Nuclear Core Light Treads Light Treads Light Treads Light Treads Light Treads Wheel Heat Sink High-capacity Matter Pod (200) Structural Scanner Sensor Array Signal Interpreter Small Laser Small Laser Small Laser Grenade Launcher Mining Laser Peak State ------------ > --- POWER ------------ Ion Engine > --- PROPULSION ------- Light Treads Light Treads > --- UTILITY ---------- High-capacity Storage Unit Seismic Detector > --- WEAPON ----------- Assault Rifle Assault Rifle > --- INVENTORY -------- Ion Engine Light Ion Engine Light Ion Engine Light Nuclear Core Light Treads Light Treads Light Treads Aluminum Leg Aluminum Leg Heat Sink Medium Matter Pod Structural Scanner Sensor Array Signal Interpreter Small Laser Small Laser Grenade Launcher Mining Laser [Rating: 9] Favorites ----------- Power Ion Engine Engine Ion Engine Propulsion Light Treads Treads Light Treads Wheel Wheel Utility Seismic Detector Device Seismic Detector Storage High-capacity Storage Unit Weapon Assault Rifle Energy Gun EM Pulse Gun Ballistic Gun Assault Rifle Special Weapon Mining Laser Build | -11 -10 -10 ------- Run | Yrd Mat Min Slots Evolved . | . . . Power . | . . . Propulsion . | . . . Utility . | . . . Weapon . | . . . Parts Attached 29 | 8 19 2 Power 4 | 1 3 . Engine 4 | 1 3 . Core . | . . . Reactor . | . . . Propulsion 15 | 3 10 2 Treads 5 | 1 3 1 Leg . | . . . Wheel 10 | 2 7 1 Hover . | . . . Flight . | . . . Utility 5 | 2 3 . Device 2 | 1 1 . Storage 3 | 1 2 . Processor . | . . . Hackware . | . . . Protection . | . . . Artifact . | . . . Weapon 5 | 2 3 . Energy Gun 1 | . 1 . Energy Cannon . | . . . Ballistic Gun 3 | 2 1 . Ballistic Cannon . | . . . Launcher . | . . . Special Weapon 1 | . 1 . Impact Weapon . | . . . Slashing Weapon . | . . . Piercing Weapon . | . . . Special Melee Weapon . | . . . Unidentified Prototypes . | . . . Parts Lost 7 | . 6 1 Power 1 | . 1 . Propulsion 2 | . 2 . Utility 1 | . 1 . Weapon 3 | . 2 1 Highest Loss Streak 3 | . 3 1 To Critical Strikes . | . . . Average Backups 12 | 3 11 20 Power 2 | . 2 4 Propulsion 4 | 1 4 6 Utility 2 | . 2 5 Weapon 2 | . 2 5 Tool/Special . | . . . Unused Backups 19 | . 6 13 Power 4 | . 1 3 Propulsion 4 | . 3 1 Utility 7 | . 2 5 Weapon 4 | . . 4 Tool/Special . | . . . Average Slot Usage (%) 97 | . 97 100 Engine 14 | . 14 14 Treads 21 | . 21 25 Wheel 6 | . 6 2 Device 12 | . 11 14 Storage 14 | . 14 14 Energy Gun 1 | . 1 . Ballistic Gun 24 | . 24 28 Special Weapon 1 | . 2 . Peak Build Rating 9 | 7 9 9 Average Rating 7 | 5 7 8 On Entrance 5 | . 7 9 Naked Turns . | . . . Heaviest Build 50 | 15 50 50 Greatest Support 40 | 26 40 40 Greatest Overweight (x) 2 | 1 2 2 Average Overweight (x) . | . . 1 Largest Inventory Capacity 20 | 8 20 20 Average Capacity 17 | 7 17 20 Most Carried 20 | 7 20 20 Average Carried 12 | 3 11 20 Final Capacity 20 | 8 20 20 Final Carried 20 | 7 20 20 Class Distribution -------------------- 93% | Mutant 6% | Scavenger-Mutant Dominant Class ---------------- Mutant | -10/Materials Mutant | -10/Mines Resources | -11 -10 -10 ----------- Run | Yrd Mat Min Matter Collected 1525 | 280 1120 125 Remotely . | . . . Salvage Created 1490 | 80 1273 137 Parts 86 | 7 75 4 Haulers Intercepted 2 | . 2 . Recyclers Shooed 1 | . 1 . Parts Field Recycled . | . . . Retrieved Matter . | . . . Parts Self-Destructed . | . . . Prevented . | . . . Kills | -11 -10 -10 ------- Run | Yrd Mat Min Combat Hostiles Destroyed 25 | . 23 2 Guns 25 | . 23 2 Classes Destroyed 8 | 2 6 . Worker 3 | . 1 2 Builder 1 | . 1 . Tunneler 3 | 2 1 . Hauler 2 | . 2 . Recycler 1 | 1 . . Operator 3 | . 3 . Watcher 3 | . 3 . Grunt 25 | . 23 2 Best Kill Streak 5 | 3 5 3 Combat Bots Only 4 | . 4 2 Max Kills in Single Turn 2 | 1 1 2 Gunslinging . | . . . Exploded . | . . . Melee . | . . . Uniques/NPCs Destroyed . | . . . Combat | -11 -10 -10 -------- Run | Yrd Mat Min Hostile Shots Fired 125 | . 107 18 Missed 31 | . 27 4 Hits 94 | . 80 14 Projectile 94 | . 80 14 AOE 4 | . . 4 Damage Taken 1320 | . 1013 307 Core 260 | . 186 74 Absorbed by Shields . | . . . Regen/Repaired (Parts) 129 | . 129 . Core Remaining (%) 100 | 100 . . Volleys Fired 142 | 5 128 9 Largest 2 | 2 2 2 Hottest 100 | 40 100 40 Shots Fired 268 | 10 240 18 Gun 253 | 10 225 18 Cannon . | . . . Launcher . | . . . Special 15 | . 15 . Kinetic 209 | 10 181 18 Thermal 15 | . 15 . Explosive . | . . . Electromagnetic 44 | . 44 . Robot Hit Streak 11 | 3 11 10 Robot Miss Streak 4 | 1 4 1 Penetration Max . | . . . Secondary Targets 1 | . . 1 Max Gunslinging Chain 1 | . . 1 Shots Hit Robots 161 | 7 141 13 Core Hits 68 | 4 58 6 Critical Kills . | . . . Critical Parts Destroyed 1 | . 1 . Critical Strikes 1 | . 1 . Destroy 1 | . 1 . Melee Attacks . | . . . Impact . | . . . Slashing . | . . . Piercing . | . . . Sneak Attacks . | . . . Combat Hostiles . | . . . Follow-up Attacks . | . . . Damage Inflicted 2151 | 92 1887 172 Guns 2151 | 92 1887 172 Cannons . | . . . Explosions . | . . . Melee . | . . . Ramming . | . . . Kinetic 1719 | 92 1455 172 Thermal . | . . . Explosive . | . . . Electromagnetic 432 | . 432 . Impact . | . . . Slashing . | . . . Piercing . | . . . Highest Corruption . | . . . Average Corruption . | . . . Corruption Purged . | . . . Corruption Blocked . | . . . Overload Shots . | . . . Overflow Damage . | . . . Projectiles . | . . . Explosions . | . . . Melee . | . . . Knockbacks . | . . . Impact . | . . . Kinetic . | . . . Secondary . | . . . Self-Inflicted Damage . | . . . Shots . | . . . Rammed . | . . . Targets Rammed . | . . . Kicked . | . . . Crushed . | . . . Highest Temperature 66 | . 66 2 Average Temperature 16 | . 16 2 Received Heat Transfer 654 | . 570 84 Siege Activations . | . . . Martial Activations . | . . . Shielding Activations . | . . . Robots Disrupted . | . . . Combat Hostiles . | . . . Robots Corrupted . | . . . Combat Hostiles . | . . . Parts Fried . | . . . Impact Corruptions . | . . . Robots Melted . | . . . Combat Hostiles . | . . . Parts Melted . | . . . Heat Transferred . | . . . Parts Sabotaged . | . . . Parts Stolen . | . . . Parts Stripped . | . . . Power Chain Reactions . | . . . Alert | -11 -10 -10 ------- Run | Yrd Mat Min Maximum Alert Level . | . . . Low Security (%) 100 | 100 100 100 Level 1 . | . . . Level 2 . | . . . Level 3 . | . . . Level 4 . | . . . Level 5 . | . . . High Security . | . . . Max Security . | . . . Peak Influence 130 | 10 130 58 Initial 23 | . . 23 Average 48 | 2 52 14 Influence Increases 833 | 15 758 60 Destroy 0b10 Robot/C 500 | . 460 40 Destroy 0b10 Robot/NC 80 | 15 55 10 Destroy Leader 120 | . 110 10 Successful Hack 27 | . 27 . Select Force Hacks 60 | . 60 . Disable Machine 15 | . 15 . Destroy Structure 16 | . 16 . Lose Combat Pursuer 15 | . 15 . Influence Decreases 833 | 15 697 121 Entered New Map 38 | . . 38 Time Decay 735 | 15 637 83 Lost Part 60 | . 60 . Squads Dispatched 6 | . 6 . Investigation 3 | . 3 . Extermination . | . . . Reinforcement 3 | . 3 . Assault . | . . . Garrison . | . . . Intercept . | . . . Searches Triggered . | . . . Construction Impeded . | . . . Haulers Reinforced . | . . . Active Scanning Responses . | . . . Cargo Convoy Interrupts . | . . . Stealth | -11 -10 -10 --------- Run | Yrd Mat Min Distress Signals 4 | . 4 . Communications Jammed . | . . . Distress Signals . | . . . Times Spotted 49 | . 42 7 Peak Tracking Total 5 | . 5 4 Tactical Retreats 1 | . 1 . Traps | -11 -10 -10 ------- Run | Yrd Mat Min Traps Triggered . | . . . Indirectly . | . . . Trap Hack Attempts . | . . . Triggered . | . . . Disarmed . | . . . Reprogrammed . | . . . Reused . | . . . Traps Extracted . | . . . Installed . | . . . Triggered . | . . . Machines | -11 -10 -10 ---------- Run | Yrd Mat Min Machines Disabled 2 | . 2 . Max in Single Turn 1 | . 1 . Machines Repaired . | . . . Machines Dismantled . | . . . Machines Sabotaged . | . . . Overloaded Fab Kills . | . . . Hacking | -11 -10 -10 --------- Run | Yrd Mat Min Machines Accessed 9 | . 9 . Terminals 6 | . 6 . Fabricators . | . . . Repair Stations 1 | . 1 . Recycling Units 2 | . 2 . Scanalyzers . | . . . Garrison Access . | . . . Total Hacks 27 | . 27 . Successful 19 | . 19 . Failed 7 | . 7 . Catastrophic 1 | . 1 . Database Lockouts 1 | . 1 . Manual 17 | . 17 . Terminals 22 | . 22 . Fabricators . | . . . Repair Stations 2 | . 2 . Recycling Units 3 | . 3 . Scanalyzers . | . . . Garrison Access . | . . . Terminal Hacks 9 | . 9 . Robot Analysis 1 | . 1 . Prototype ID Bank 2 | . 2 . Branch Access Points 1 | . 1 . Alert Level 2 | . 2 . Locate Traps 3 | . 3 . Fabricator Hacks . | . . . Repair Station Hacks 2 | . 2 . Scan Component 1 | . 1 . Repair 1 | . 1 . Recycling Unit Hacks 1 | . 1 . Retrieve Matter 1 | . 1 . Scanalyzer . | . . . Garrison Access Hacks . | . . . Unauthorized Hacks 7 | . 7 . Terminals 5 | . 5 . Botnet 4 | . 4 . Operators 1 | . 1 . Fabricators . | . . . Repair Stations . | . . . Recycling Units 2 | . 2 . Tunnel 2 | . 2 . Scanalyzers . | . . . Garrison Access . | . . . Data Cores Recovered . | . . . Used . | . . . Hacking Detections 7 | . 7 . Full Trace Events 1 | . 1 . Feedback Events . | . . . Feedback Blocked . | . . . Robot Schematics Acquired . | . . . Robots Built . | . . . Authchips . | . . . Time . | . . . Total Robot Build Rating . | . . . Part Schematics Acquired . | . . . Parts Built . | . . . Authchips . | . . . Time . | . . . Total Part Build Rating . | . . . Parts Repaired 1 | . 1 . Time 26 | . 26 . Parts Recycled . | . . . Recycled Matter . | . . . Retrieved Matter . | . . . Retrieved Components . | . . . Parts Scanalyzed . | . . . Part Schematics Acquired . | . . . Parts Damaged . | . . . Bothacking | -11 -10 -10 ------------ Run | Yrd Mat Min Used RIF Installer . | . . . Robots Hacked . | . . . Non-combat . | . . . Combat . | . . . Robot Hacks Applied . | . . . Relay Couplers Released . | . . . Fabnet Peak Effective % . | . . . Robots Rewired . | . . . Allies Hacked . | . . . Hacks Repelled . | . . . Allies | -11 -10 -10 -------- Run | Yrd Mat Min Total Allies . | . . . Largest Group . | . . . Highest-Rated Group . | . . . Highest-Rated Ally . | . . . Total Orders . | . . . Ally Attacks . | . . . Total Damage . | . . . Kills . | . . . Allies Corrupted . | . . . Allies Melted . | . . . Intel | -11 -10 -10 ------- Run | Yrd Mat Min Active Infowar (turns) 3198 | 37 2811 350 Seismic 3198 | 37 2811 350 Robot Analysis Total 1 | . 1 . Derelict Logs Recovered . | . . . Drone Launches . | . . . Drone Recoveries . | . . . Exploration | -11 -10 -10 ------------- Run | Yrd Mat Min Turns Passed 3745 | 85 3310 350 Spaces Moved 1607 | 58 1412 137 Core 1 | 1 . . Treads 1015 | 1 890 124 Legs . | . . . Wheels 591 | 56 522 13 Hover . | . . . Flight . | . . . Fastest Speed 50 | 50 80 110 Average Speed 183 | 90 183 227 Slowest Speed 240 | 160 240 240 Overloaded Moves . | . . . Propulsion Burnouts . | . . . Robots Hopped . | . . . Potential Cave-ins . | . . . Cave-ins Triggered . | . . . Exploration Rate (%) 42 | 5 100 23 Regions Visited 2 Branch Regions 1 Pre-discovered Areas 2 | . 2 . Known Exits Taken 1 | . 1 . Unknown Exits Taken 1 | 1 . . Scrap Searched . | . . . Spaces Dug 13 | . 13 . Terrain Destroyed 13 | . 13 . Melee . | . . . Projectile 13 | . 13 . AOE . | . . . Terrain Rammed . | . . . Walls Destroyed . | . . . Machines Disabled . | . . . Actions | -11 -10 -10 --------- Run | Yrd Mat Min Total 2086 | 77 1854 155 Wait 241 | . 236 5 Move 1605 | 57 1411 137 Hop . | . . . Pick Up 33 | 6 27 . Fast Attach 10 | 8 2 . Attach 5 | . 5 . Detach 1 | 1 . . Swap 34 | . 30 4 Drop 15 | . 15 . Fire 142 | 5 128 9 Melee . | . . . Ram . | . . . Kick . | . . . Crush . | . . . Escape Stasis . | . . . Rewire . | . . . Trap . | . . . Miscellaneous . | . . . Route ------- -11/Scrapyard -10/Materials (discovered 6 exits: [*Mat x3] / *Min x2 / [*Sub]) -10/Mines History --------- Turn | Location | Event 32 | -11/Scrapyard | Discovered new exit (range 15) 86 | -11/Scrapyard | Entered Materials 314 | -10/Materials | Build established: Mutant 342 | -10/Materials | Discovered new exit (range 9) 553 | -10/Materials | Discovered new exit (range 8) 738 | -10/Materials | Central database locked down 821 | -10/Materials | Discovered new exit (range 16) 1133 | -10/Materials | Core integrity fell below 50% 1213 | -10/Materials | Lost 3 parts (1p2w) 1227 | -10/Materials | Discovered new exit (range 15) 1447 | -10/Materials | Identified exit to Mines 1466 | -10/Materials | Discovered new exit (range 8) 2425 | -10/Materials | Discovered new exit (range 11) 2638 | -10/Materials | Repaired Lgt. Treads 3396 | -10/Materials | Entered Mines 3418 | -10/Mines | Core integrity fell below 20% 3712 | -10/Mines | Assembled infested the area 3746 | -10/Mines | Destroyed by D-53 Grenadier with Mini Grenade Launcher Last Messages --------------- GOAL=ESCAPE Something is scanning the area. 03419_ K-01 Serf cleans the Seismic Survey Station. 03419_ G-34 Mercenary destroyed. 03419_ Switching to secondary target: G-47 Trooper. 03428_ K-01 Serf collects debris. 03437_ G-47 Trooper destroyed. 03437_ K-01 Serf destroyed. 03442_ Acquired 103 matter. 03444_ Acquired 11 matter. 03495_ K-01 Serf collects debris. 03563_ K-01 Serf destroyed. 03566_ Acquired 11 matter. 03650_ R-06 Scavenger collects Wheel. 03712_ ALERT: Infestation in the mines, dispatching Demolisher response squad. 03739_ C-30 ARC bursts open, deploying its payload. 03739_ D-53 Grenadier unfolds itself. 03741_ T-07 Excavator suffers critical hit (Burn). 03744_ Assault Rifle destroyed. Map ----- +----------------------------------------------------+ | ?????????????????????????????????????????????????? | | ?????????????????????????????????????????????????? | | ?????????????????????????????????????????????????? | | ?????????????????????????????????????????????????? | | ?????????????????????????????????????????????????? | | ?????????????????????????????????????????????????? | | ?????????????????????????????????????????????????? | | ?????????????????????????????????????????????????? | | ?????????????????????????????????????????????????? | | ?????????????????????????????????????????????????? | | ????????????????????????? ??????????????????????? | | ????????????????????????? #?????????????????????? | | ????????????????????????# #?????????????????????? | | ????????????????????????# #?????????????????????? | | ????????????????????????#% #?????????????????????? | | ????????????????????????# #?????????????????????? | | ????????????????????????#gd#?????????????????????? | | ????????????????????????# #?????????????????????? | | ????????????????????????# ##????????????????????? | | ????????????????????????# ?????????????????????? | | ???????????????????????##t ###???????????????????? | | ??????????????????????## # ##??????????????????? | | ??????????????????????# ##?????????????????? | | ??????????????######### #?????????????????? | | ??????????????# #??????????????????? | | ??????????????# @ #??????????????????? | | ??????????????# ## #?????????????????? | | ??????######### ### # #?????????????????? | | ??????# % #?#### ##????????????????? | | ??????# ####### #????#### #????????????????? | | ??????# #?????# #?????## #########????????? | | ??????# #?????# #?????# #????????? | | ??????# #?????# #?????# #????????? | | ##????# #?????# ##????## ########### #????????? | | ###### #????## ##????#####????????????????????? | | #????# ##????????????????????????????? | | #######????# #????????????????????????????? | | #??????????## ##???????????????????????????? | | ##???????????## #???????????????????????????? | | ##?????????????## #???????????????????????????? | | ??###???####???## #???????????????????????????? | | ?## ### ##??# #???????????????????????????? | | ?# #??# #???????????????????????????? | | ?# #### #???????????????????????????? | | ?# ##???????????????????????????? | | ?## ## #????????????????????????????? | | ??##???###### ## #????????????????????????????? | | ????????????# ## #????????????????????????????? | | ##########??# ### ##????????????????????????????? | | # #??# #?####?????????????????????????????? | +----------------------------------------------------+ Best States ------------- Heat Dissipation 25 Energy Generation 10 Energy Capacity 250 Matter Stores 300 Matter Capacity 300 Sight Range 16 Terrain Scan Density 10 Evasion (%) 44 Recoil Reduction 2 Item Schematics ----------------- None Robot Schematics ------------------ None Fabricated ------------ Nothing Repaired ---------- Lgt. Treads | 7% | -10/Materials Alien Tech Used ----------------- None Achievements -------------- None Challenges ------------ None Game ------ Seed ModifiedJunkCore Manual? 0 Play Time 00:26:33 Cumulative 102.2 hours Start 2025.05.26 @ 17:20:02 End 2025.05.31 @ 23:58:22 Sessions 9 Manual Loads 0 Difficulty Rogue Special Mode None Game No. 60 Rogue 56 Adventurer 4 Explorer 0 Win Type - Total 2 Types 1/0/0/1/0/0/0/0/0/0 Lore% 40 Gallery% 46 Achievement% 42 Wizard Run 0 Options --------- Layout 0 ASCII 0 Keyboard 1 Movement Vi Keybinds 0 Fullscreen 1 Font 24/Crisp Map View 76x50 Zoom Use 0% Tactical HUD 1 Map Filters NONE Filters NONE Steam 1 RUN: 8d93073b-70bc-48a6-b42b-ab3a4e65b700